bitfinex/quotes_SOLUSD_20251002
["timestamp","ask_amount","ask_price","bid_price","bid_amount"]
[1759404658733,0.7,225.48,225.44,20.8]
[1759404658935,0.7,225.47,225.44,25.2357359]
[1759404660427,0.8,225.49,225.44,25.2357359]
[1759404660622,0.1,225.49,225.45,0.27]
[1759404661426,0.1,225.49,225.46,0.27]
[1759404661620,0.1,225.49,225.47,51.74]
[1759404661825,0.1,225.49,225.48,0.27]
[1759404662424,0.1,225.49,225.48,4.70498314]
[1759404664240,0.1,225.49,225.48,4.43498314]
[1759404665347,0.1,225.49,225.47,51.74]
[1759404665348,0.1,225.49,225.47,56.17514603]
[1759404665642,0.1,225.49,225.47,30.94]
[1759404666842,0.1,225.49,225.46,25.23518882]
[1759404667021,0.7,225.48,225.43,11.53729712]
[1759404667220,0.7,225.47,225.38,4.70695092]
[1759404667422,4.43516154,225.48,225.39,30.94]
[1759404667729,0.7,225.46,225.39,30.94]
[1759404668241,0.7,225.46,225.42,20.8]
[1759404668935,0.7,225.45,225.36,0.27]
[1759404669138,0.7,225.45,225.37,35.3771478]
[1759404669453,0.7,225.44,225.4,20.8]
[1759404670131,10.87647521,225.42,225.3,0.27]
[1759404670331,10.87647521,225.42,225.29,21.36]
[1759404670538,10.87647521,225.4,225.29,21.36]
[1759404670746,0.7,225.39,225.26,31.29]
[1759404671042,5.13705013,225.38,225.31,20.8]
[1759404671229,4.43705013,225.38,225.31,20.8]
[1759404671431,0.7,225.37,225.31,20.8]
[1759404672143,0.7,225.36,225.31,25.23830681]
[1759404672349,0.7,225.35,225.31,25.23830681]
[1759404672534,0.7,225.34,225.31,25.23830681]
[1759404673835,0.7,225.34,225.31,20.8]
[1759404674447,0.7,225.33,225.29,4.43853099]
[1759404674841,0.7,225.32,225.27,4.4391175]
[1759404675143,0.7,225.31,225.28,20.8]
[1759404675327,0.7,225.3,225.25,15.5381]
[1759404675715,0.7,225.3,225.26,20.8]
[1759404675975,4.43821967,225.32,225.26,20.8]
[1759404676141,0.7,225.29,225.26,20.8]
[1759404676448,0.7,225.31,225.26,20.8]
[1759404676743,0.7,225.3,225.26,20.8]
[1759404677541,0.7,225.3,225.27,4.4391175]
[1759404677732,0.7,225.3,225.27,25.2391175]
[1759404683445,0.71,225.29,225.27,4.4391175]
[1759404683631,31.0,225.31,225.27,4.4391175]
[1759404683953,0.71,225.3,225.27,25.2391175]
[1759404684247,0.67,225.29,225.27,25.2391175]
[1759404687155,31.67,225.31,225.27,25.2391175]
[1759404687334,0.67,225.3,225.27,25.2391175]
[1759404688656,31.0,225.31,225.27,25.2391175]
[1759404689024,31.67,225.31,225.27,25.2391175]
[1759404689453,0.67,225.31,225.27,25.2391175]
[1759404689660,31.65,225.31,225.27,25.2391175]
[1759404690854,0.67,225.3,225.27,25.2391175]
[1759404696355,132.9,225.33,225.27,4.4391175]
[1759404696661,132.9,225.33,225.28,0.27]
[1759404696662,163.86,225.33,225.28,0.27]
[1759404697042,164.53,225.33,225.28,0.27]
[1759404698072,0.67,225.32,225.27,36.33691125]
[1759404698262,0.67,225.32,225.27,36.60691125]
[1759404700143,163.86,225.33,225.27,36.33691125]
[1759404700339,0.67,225.31,225.27,36.33691125]
[1759404703069,30.96,225.32,225.27,36.60691125]
[1759404703244,0.67,225.32,225.27,36.60691125]
[1759404707965,31.63,225.32,225.27,36.60691125]
[1759404709373,0.67,225.31,225.27,36.33691125]
[1759404709743,0.67,225.31,225.27,36.60691125]
[1759404713792,132.9,225.33,225.28,0.27]
[1759404713958,4.43673507,225.4,225.28,0.27]
[1759404713959,132.9,225.41,225.28,0.27]
[1759404714163,0.65,225.41,225.31,20.8]
[1759404714354,13.32474627,225.45,225.35,20.8]
[1759404714582,0.65,225.44,225.37,20.8]
[1759404714885,0.65,225.43,225.37,21.07]
[1759404715377,0.65,225.43,225.38,15.52932823]
[1759404715959,0.65,225.43,225.38,15.79932823]
[1759404716169,30.96,225.44,225.39,0.27]
[1759404716376,0.65,225.44,225.4,4.43655723]
[1759404716554,0.65,225.44,225.4,15.5279503]
[1759404717192,0.65,225.43,225.4,15.5279503]
[1759404718374,0.65,225.43,225.4,11.09139307]
[1759404719261,11.43987159,225.47,225.4,11.09139307]
[1759404719463,0.65,225.46,225.4,11.36139307]
[1759404719776,42.39987159,225.47,225.43,20.8]
[1759404720176,42.39987159,225.47,225.43,21.07]
[1759404720488,11.43987159,225.47,225.44,15.52519516]
[1759404721796,12.08987159,225.47,225.44,15.52519516]
[1759404721963,11.43987159,225.47,225.44,15.52519516]
[1759404722460,11.43987159,225.47,225.44,11.08942512]
[1759404722967,12.08987159,225.47,225.44,11.08942512]
[1759404724410,11.43987159,225.47,225.44,11.08942512]
[1759404727001,0.1,225.49,225.47,20.8]
[1759404727507,0.1,225.49,225.47,21.07]
[1759404727873,0.1,225.49,225.47,20.8]
[1759404728072,0.1,225.49,225.48,20.8]
[1759404728776,0.1,225.49,225.48,25.23498314]
[1759404737002,0.1,225.49,225.48,25.50498314]
[1759404737688,0.1,225.49,225.48,56.44498314]
[1759404739703,0.1,225.52,225.48,67.532441]
[1759404739879,0.1,225.52,225.49,0.27]
[1759404740076,0.1,225.52,225.5,31.21]
[1759404741310,0.1,225.52,225.51,0.27]
[1759404741596,0.1,225.52,225.5,30.94]
[1759404741904,0.1,225.52,225.51,4.43439315]
[1759404742604,0.82,225.52,225.51,4.43439315]
[1759404743208,0.82,225.52,225.5,4.4345621]
[1759404743387,0.1,225.52,225.5,4.4345621]
[1759404743789,0.1,225.52,225.48,15.522441]
[1759404744104,0.69,225.51,225.5,20.8]
[1759404745621,0.69,225.51,225.5,25.2345898]
[1759404746999,0.1,225.52,225.5,25.2345898]
[1759404747231,0.69,225.51,225.5,25.2345898]
[1759404747932,0.1,225.52,225.5,25.2345898]
[1759404748132,0.69,225.51,225.5,25.2345898]
[1759404749143,0.1,225.52,225.51,20.8]
[1759404749507,0.1,225.52,225.47,30.94]
[1759404749710,0.69,225.51,225.45,4.43557329]
[1759404750020,0.69,225.5,225.43,4.43581194]
[1759404750200,0.69,225.49,225.43,4.43581194]
[1759404750402,0.69,225.48,225.43,4.43581194]
[1759404750629,0.69,225.48,225.45,20.8]
[1759404750826,0.69,225.47,225.43,4.43581194]
[1759404751064,0.69,225.46,225.43,4.43581194]
[1759404751347,0.69,225.45,225.43,4.43581194]
[1759404752125,0.69,225.49,225.43,15.52572898]
[1759404752624,0.69,225.51,225.46,20.8]
[1759404752830,0.69,225.5,225.46,20.8]
[1759404753034,133.0,225.52,225.46,20.8]
[1759404753233,0.69,225.49,225.46,20.8]
[1759404753934,0.69,225.49,225.47,4.43517984]
[1759404755623,0.69,225.48,225.47,4.43517984]
[1759404755939,0.69,225.49,225.47,4.43517984]
[1759404756234,0.69,225.48,225.47,4.43517984]
[1759404756427,0.69,225.5,225.47,4.43517984]
[1759404756736,0.69,225.49,225.47,4.43517984]
[1759404757237,133.0,225.52,225.47,4.43517984]
[1759404757435,0.69,225.49,225.47,4.43517984]
[1759404757637,0.69,225.51,225.47,15.52312945]
[1759404757824,0.69,225.5,225.47,15.52312945]
[1759404758017,0.69,225.49,225.47,15.52312945]
[1759404758734,133.0,225.52,225.47,25.23517984]
[1759404758936,0.69,225.51,225.47,25.23517984]
[1759404759232,0.69,225.5,225.47,25.23517984]
[1759404759408,0.69,225.49,225.47,25.23517984]
[1759404761242,133.69,225.52,225.47,25.23517984]
[1759404761739,0.69,225.51,225.47,25.23517984]
[1759404762125,0.69,225.51,225.47,36.32312945]
[1759404763120,133.0,225.52,225.47,36.32312945]
[1759404763440,133.0,225.52,225.43,20.8]
[1759404763441,0.69,225.51,225.43,20.8]
[1759404763762,31.63,225.5,225.43,20.8]
[1759404763945,0.69,225.49,225.42,20.8]
[1759404764122,0.69,225.48,225.42,20.8]
[1759404764443,0.69,225.47,225.43,4.43596681]
[1759404764738,0.69,225.46,225.43,4.43596681]
[1759404765327,30.94,225.5,225.43,4.43596681]
[1759404765539,133.59,225.51,225.43,15.79588385]
[1759404765724,164.53,225.51,225.43,15.79588385]
[1759404765930,0.69,225.5,225.43,15.79588385]
[1759404767719,132.9,225.51,225.46,20.8]
[1759404767924,133.59,225.51,225.48,20.8]
[1759404768645,133.59,225.51,225.49,4.43478646]
[1759404769357,0.69,225.5,225.49,4.43478646]
[1759404780751,31.63,225.5,225.47,20.8]
[1759404781110,0.71,225.49,225.42,51.74]
[1759404781238,132.9,225.51,225.42,51.74]
[1759404781239,30.94,225.48,225.42,51.74]
[1759404781439,0.71,225.47,225.42,51.74]
[1759404781742,0.71,225.46,225.42,30.94]
[1759404781960,0.71,225.45,225.43,4.43596681]
[1759404782148,30.94,225.48,225.44,20.8]
[1759404782759,0.71,225.47,225.44,20.8]
[1759404782958,0.71,225.46,225.44,25.23576825]
[1759404783152,0.71,225.45,225.44,25.23576825]
[1759404784066,0.71,225.45,225.44,20.8]
[1759404785570,0.71,225.45,225.43,20.8]
[1759404785879,31.65,225.44,225.41,20.8]
[1759404786182,0.71,225.43,225.41,20.8]
[1759404786376,0.71,225.42,225.41,20.8]
[1759404786577,0.71,225.42,225.38,20.8]
[1759404786782,0.71,225.44,225.39,20.8]
[1759404786955,31.65,225.44,225.39,21.07]
[1759404787881,31.65,225.44,225.4,4.43655723]
[1759404788076,163.84,225.46,225.4,4.43655723]
[1759404788261,0.71,225.43,225.4,4.43655723]
[1759404789279,0.71,225.45,225.4,4.43655723]
[1759404789478,0.71,225.44,225.4,4.43655723]
[1759404789882,0.71,225.43,225.4,4.43655723]
[1759404790062,0.71,225.42,225.4,4.43655723]
[1759404790266,163.84,225.46,225.39,20.8]
[1759404790267,10.87647521,225.45,225.39,20.8]
[1759404790572,0.71,225.41,225.4,20.8]
[1759404790773,0.71,225.43,225.4,20.8]
[1759404790980,0.71,225.42,225.4,20.8]
[1759404791175,10.87647521,225.45,225.4,20.8]
[1759404791365,0.71,225.41,225.4,25.23655723]
[1759404792666,0.71,225.41,225.4,20.8]
[1759404795175,0.71,225.41,225.4,25.23655723]
[1759404796073,0.71,225.43,225.4,25.23655723]
[1759404796581,0.71,225.42,225.4,25.23655723]
[1759404798587,0.71,225.41,225.4,25.23655723]
[1759404798771,10.87647521,225.4,225.33,4.43793547]
[1759404798973,0.71,225.39,225.34,20.8]
[1759404799189,0.71,225.38,225.33,4.43793547]
[1759404799568,0.71,225.38,225.34,20.8]
[1759404799875,31.65,225.41,225.36,20.8]
[1759404800080,31.65,225.41,225.37,4.4371478]
[1759404800277,0.71,225.4,225.37,4.4371478]
[1759404800686,0.71,225.39,225.37,4.4371478]
[1759404807375,10.87647521,225.44,225.37,4.4371478]
[1759404807576,133.61,225.43,225.38,20.8]
[1759404807778,0.71,225.42,225.38,20.8]
[1759404808187,0.71,225.42,225.37,35.3771478]
[1759404808384,0.71,225.42,225.37,35.6471478]
[1759404809292,132.9,225.43,225.38,0.27]
[1759404809492,132.9,225.48,225.4,20.8]
[1759404809698,0.71,225.45,225.4,20.8]
[1759404810006,0.71,225.44,225.4,20.8]
[1759404811192,0.71,225.44,225.41,4.4363604]
[1759404811705,163.84,225.47,225.41,4.4363604]
[1759404811902,0.71,225.46,225.41,4.4363604]
[1759404812283,163.84,225.47,225.41,4.4363604]
[1759404812284,0.71,225.45,225.41,4.4363604]
[1759404813283,163.84,225.47,225.41,4.4363604]
[1759404813488,0.71,225.46,225.41,4.4363604]
[1759404813807,0.71,225.45,225.41,4.4363604]
[1759404813991,0.71,225.44,225.41,4.4363604]
[1759404814395,0.71,225.46,225.41,4.4363604]
[1759404814600,0.71,225.45,225.41,4.4363604]
[1759404815106,0.71,225.44,225.41,4.4363604]
[1759404816404,0.71,225.43,225.4,4.43655134]
[1759404817613,0.71,225.45,225.4,4.43655134]
[1759404817911,0.71,225.44,225.4,4.43655134]
[1759404819808,30.94,225.46,225.4,4.43655134]
[1759404820013,0.71,225.45,225.4,4.43655134]
[1759404820214,0.71,225.44,225.4,4.43655134]
[1759404820512,0.71,225.43,225.4,4.43655134]
[1759404820713,0.71,225.42,225.4,4.43655134]
[1759404821018,0.71,225.41,225.4,25.23655134]
[1759404821192,0.71,225.43,225.4,25.23655134]
[1759404821512,0.71,225.42,225.4,25.23655134]
[1759404821719,0.71,225.44,225.4,25.23655134]
[1759404821914,0.71,225.43,225.4,25.23655134]
[1759404823887,30.94,225.46,225.4,25.23655134]
[1759404823888,0.71,225.45,225.4,25.23655134]
[1759404824085,0.71,225.44,225.4,25.23655134]
[1759404824309,0.71,225.43,225.4,25.23655134]
[1759404826412,0.71,225.42,225.4,25.23655134]
[1759404827318,0.71,225.44,225.4,25.23655134]
[1759404827522,0.71,225.43,225.4,25.23655134]
[1759404827820,163.84,225.47,225.44,20.8]
[1759404827821,132.9,225.47,225.44,20.8]
[1759404828216,132.9,225.47,225.44,21.07]
[1759404828531,132.9,225.47,225.44,20.8]
[1759404829028,133.61,225.47,225.45,4.43557329]
[1759404829234,0.71,225.46,225.44,25.23573483]
[1759404829730,132.9,225.47,225.44,25.23573483]
[1759404829929,133.61,225.47,225.44,25.23573483]
[1759404830618,0.81,225.52,225.45,0.27]
[1759404831133,0.81,225.52,225.46,15.52381796]
[1759404831427,0.81,225.52,225.49,20.8]
[1759404831725,0.1,225.52,225.49,20.8]
[1759404831905,0.71,225.51,225.49,20.8]
[1759404832831,0.1,225.52,225.5,4.4345898]
[1759404834631,0.1,225.52,225.5,35.6445898]
[1759404835125,0.1,225.52,225.51,0.27]
[1759404835932,0.1,225.52,225.51,4.70439315]
[1759404837702,0.1,225.52,225.51,4.43439315]
[1759404842331,0.1,225.52,225.51,4.70439315]
[1759404842506,0.1,225.55,225.54,20.8]
[1759404844341,0.77,225.55,225.54,20.8]
[1759404844537,0.77,225.55,225.54,25.23380331]
[1759404847423,0.1,225.55,225.54,25.23380331]
[1759404850545,0.77,225.55,225.54,25.23380331]
[1759404853050,0.1,225.55,225.54,25.23380331]
[1759404853630,0.1,225.55,225.54,4.43380331]
[1759404858340,0.77,225.55,225.54,4.43380331]
[1759404858946,0.1,225.55,225.54,4.43380331]
[1759404859427,0.77,225.55,225.53,30.92]
[1759404859938,0.67,225.54,225.53,30.92]
[1759404860328,0.67,225.54,225.51,25.23439315]
[1759404860525,0.67,225.53,225.51,25.23439315]
[1759404862046,0.77,225.55,225.53,20.8]
[1759404862555,0.67,225.54,225.53,20.8]
[1759404863231,0.67,225.54,225.53,25.23399991]
[1759404863633,0.72,225.54,225.53,25.23399991]
[1759404865348,0.72,225.54,225.53,4.43399991]
[1759404866057,0.1,225.55,225.54,20.8]
[1759404866554,0.8,225.55,225.54,20.8]
[1759404867254,0.8,225.55,225.54,25.23380331]
[1759404870658,0.8,225.55,225.54,20.8]
[1759404875259,0.8,225.55,225.51,20.8]
[1759404875458,0.7,225.54,225.51,20.8]
[1759404875754,0.1,225.55,225.49,4.43478646]
[1759404875755,0.7,225.53,225.49,4.43478646]
[1759404876060,0.7,225.52,225.51,20.8]
[1759404877536,0.7,225.52,225.44,4.43341994]
[1759404877537,0.7,225.52,225.44,15.52248193]
[1759404877759,0.7,225.51,225.44,11.08906199]
[1759404878064,0.7,225.53,225.48,20.8]
[1759404878263,0.7,225.52,225.48,51.7]
[1759404879439,0.7,225.52,225.49,4.43478646]
[1759404886871,0.7,225.53,225.49,4.43478646]
[1759404887057,0.7,225.52,225.49,4.43478646]
[1759404888271,0.7,225.52,225.49,4.43478646]
[1759404888784,0.1,225.55,225.5,31.17]
[1759404889151,0.8,225.55,225.5,31.17]
[1759404889874,0.8,225.55,225.51,15.52037603]
[1759404890067,0.8,225.55,225.52,30.9]
[1759404890669,0.1,225.55,225.54,20.8]
[1759404890870,0.1,225.55,225.54,51.7]
[1759404891872,0.1,225.55,225.54,56.13380331]
[1759404894877,0.1,225.55,225.54,56.40380331]
[1759404895049,0.1,225.55,225.47,22.17539098]
[1759404895050,0.82,225.55,225.48,11.3571164]
[1759404895256,0.72,225.54,225.52,20.8]
[1759404895548,0.72,225.53,225.52,20.8]
[1759404896881,0.72,225.53,225.52,25.23419652]
[1759404897478,0.1,225.55,225.52,25.23419652]
[1759404897680,0.72,225.54,225.53,20.8]
[1759404897977,0.1,225.55,225.53,20.8]
[1759404898358,0.82,225.55,225.53,20.8]
[1759404898575,0.1,225.55,225.53,20.8]
[1759404898975,0.1,225.55,225.54,4.43380331]
[1759404899280,0.82,225.55,225.54,4.43380331]
[1759404899474,0.82,225.55,225.53,20.8]
[1759404900049,0.72,225.54,225.53,20.8]
[1759404900274,0.72,225.54,225.53,25.23399991]
[1759404900472,0.1,225.55,225.53,25.23399991]
[1759404900882,0.82,225.55,225.53,25.23399991]
[1759404902469,0.1,225.55,225.53,25.23399991]
[1759404902669,0.82,225.55,225.53,25.23399991]
[1759404903176,0.72,225.54,225.53,25.23399991]
[1759404903371,0.72,225.54,225.53,20.8]
[1759404903760,0.72,225.54,225.46,4.43537656]
[1759404903962,0.72,225.53,225.47,30.9]
[1759404904282,0.72,225.52,225.43,4.43582898]
[1759404904465,0.72,225.51,225.43,4.43582898]
[1759404904783,2.20157691,225.5,225.41,8.96984202]
[1759404904990,0.72,225.49,225.41,30.9]
[1759404905194,5.15498314,225.48,225.38,13.32060475]
[1759404905486,0.72,225.47,225.41,20.8]
[1759404905887,0.72,225.46,225.41,20.8]
[1759404906083,0.72,225.45,225.41,20.8]
[1759404906474,5.15577004,225.44,225.41,20.8]
[1759404906806,0.72,225.43,225.41,20.8]
[1759404906975,4.43547581,225.46,225.41,20.8]
[1759404907175,0.72,225.45,225.41,20.8]
[1759404907485,0.72,225.44,225.41,20.8]
[1759404907670,0.72,225.43,225.41,20.8]
[1759404907872,0.72,225.42,225.41,20.8]
[1759404909873,13.32178778,225.45,225.41,20.8]
[1759404910085,4.43536222,225.47,225.4,20.8]
[1759404910288,0.72,225.44,225.4,20.8]
[1759404910489,0.72,225.44,225.4,25.23649801]
[1759404911189,13.32119624,225.46,225.4,25.23649801]
[1759404911380,14.04119624,225.46,225.4,25.50649801]
[1759404912173,14.04119624,225.46,225.41,20.8]
[1759404912373,0.72,225.45,225.41,20.8]
[1759404912606,17.75657497,225.46,225.4,25.23649801]
[1759404912784,0.72,225.44,225.4,25.23649801]
[1759404913299,17.75657497,225.46,225.4,25.23649801]
[1759404913503,0.72,225.43,225.4,25.23649801]
[1759404913878,0.72,225.45,225.4,25.23649801]
[1759404914092,0.72,225.44,225.4,25.23649801]
[1759404915298,17.75657497,225.46,225.4,25.23649801]
[1759404915299,14.04119624,225.46,225.4,25.50649801]
[1759404915497,0.72,225.46,225.41,20.8]
[1759404915698,0.72,225.45,225.41,20.8]
[1759404916801,0.72,225.45,225.41,25.23616929]
[1759404917806,14.04060475,225.47,225.41,25.50616929]
[1759404918391,0.72,225.46,225.41,25.23616929]
[1759404918593,0.72,225.45,225.41,25.23616929]
[1759404922622,0.68,225.44,225.41,20.8]
[1759404923111,0.68,225.44,225.41,25.23635885]
[1759404923511,0.68,225.44,225.41,20.8]
[1759404924812,0.71,225.43,225.41,20.8]
[1759404925109,4.43578042,225.44,225.36,20.8]
[1759404925110,0.71,225.42,225.36,20.8]
[1759404925402,0.71,225.41,225.36,20.8]
[1759404925608,0.71,225.41,225.36,25.23729663]
[1759404929214,132.9,225.45,225.37,0.27]
[1759404929395,132.9,225.45,225.38,30.92]
[1759404929705,146.93060475,225.45,225.38,31.19]
[1759404929912,146.93060475,225.45,225.39,0.27]
[1759404930213,133.61,225.45,225.39,0.27]
[1759404930507,133.61,225.45,225.38,31.19]
[1759404930695,0.71,225.44,225.38,31.19]
[1759404933305,0.71,225.44,225.41,25.23620502]
[1759404933511,132.9,225.45,225.41,25.23620502]
[1759404933707,132.9,225.45,225.41,25.50620502]
[1759404934082,132.9,225.45,225.41,25.23620502]
[1759404934487,132.9,225.45,225.41,25.50620502]
[1759404935392,132.9,225.45,225.41,25.23620502]
[1759404935600,133.61,225.45,225.41,25.23620502]
[1759404938499,132.9,225.45,225.41,25.23620502]
[1759404938818,0.71,225.44,225.41,25.23620502]
[1759404941321,132.9,225.45,225.41,25.23620502]
[1759404941527,133.61,225.45,225.41,25.23620502]
[1759404943125,132.9,225.45,225.41,36.32710604]
[1759404943327,0.71,225.48,225.45,20.8]
[1759404943539,0.71,225.47,225.45,20.8]
[1759404943712,0.71,225.46,225.45,20.8]
[1759404944906,0.71,225.46,225.44,20.8]
[1759404945223,4.43500984,225.48,225.41,51.7]
[1759404945522,17.75561459,225.48,225.41,51.7]
[1759404945728,0.71,225.47,225.41,51.7]
[1759404945924,17.75561459,225.48,225.41,51.7]
[1759404946130,0.71,225.46,225.42,4.43615225]
[1759404946419,0.71,225.45,225.42,4.43615225]
[1759404947629,4.43518069,225.47,225.42,4.43615225]
[1759404947630,0.71,225.44,225.43,20.8]
[1759404951122,0.71,225.44,225.38,51.7]
[1759404951316,0.71,225.43,225.42,20.8]
[1759404959118,0.68,225.45,225.42,25.2361636]
[1759404959750,35.33521772,225.47,225.42,25.2361636]
[1759404959931,0.68,225.44,225.42,25.2361636]
[1759404960450,146.22119624,225.48,225.43,20.8]
[1759404960651,146.22119624,225.48,225.42,4.4361636]
[1759404960652,0.68,225.47,225.42,4.4361636]
[1759404960947,0.68,225.46,225.42,4.4361636]
[1759404961327,0.68,225.46,225.42,17.75558553]
[1759404961727,0.68,225.45,225.42,4.4361636]
[1759404961928,0.68,225.44,225.43,20.8]
[1759404962132,137.33506319,225.48,225.43,20.8]
[1759404962334,133.58,225.48,225.43,20.8]
[1759404962550,0.68,225.5,225.44,0.27]
[1759404962722,0.68,225.51,225.47,20.8]
[1759404963951,0.68,225.54,225.48,4.70498314]
[1759404964151,0.1,225.55,225.48,4.43498314]
[1759404964456,0.1,225.55,225.49,0.27]
[1759404964758,0.78,225.55,225.49,0.27]
[1759404965144,0.78,225.55,225.48,4.43498314]
[1759404965352,0.68,225.54,225.5,20.8]
[1759404965539,0.68,225.53,225.46,4.43518403]
[1759404965742,31.58,225.52,225.47,20.8]
[1759404965945,0.68,225.51,225.44,35.33557753]
[1759404966263,0.68,225.5,225.44,56.13557753]
[1759404966450,0.68,225.49,225.44,56.13557753]
[1759404966953,0.68,225.48,225.44,56.13557753]
[1759404967142,0.68,225.48,225.44,25.23557753]
[1759404968058,4.4347029,225.5,225.44,25.23557753]
[1759404968258,0.68,225.47,225.44,20.8]
[1759404968562,0.68,225.46,225.44,20.8]
[1759404969457,0.68,225.45,225.44,20.8]
[1759404969956,4.43503158,225.48,225.44,20.8]
[1759404970147,0.68,225.47,225.43,20.8]
[1759404970345,0.68,225.46,225.43,20.8]
[1759404972740,0.68,225.49,225.44,21.07]
[1759404973056,0.68,225.48,225.44,20.8]
[1759404973362,0.68,225.5,225.44,20.8]
[1759404973858,0.68,225.5,225.44,25.23558422]
[1759404974433,0.68,225.49,225.44,25.23558422]
[1759404974636,0.68,225.48,225.44,25.23558422]
[1759404975432,132.9,225.51,225.45,0.27]
[1759404975657,132.9,225.51,225.47,20.8]
[1759404976372,133.58,225.51,225.47,20.8]
[1759404976663,133.58,225.51,225.47,25.23503349]
[1759404977042,133.58,225.51,225.47,20.8]
[1759404977363,0.68,225.51,225.47,20.8]
[1759404977859,0.68,225.54,225.48,31.17]
[1759404978265,0.1,225.55,225.49,0.27]
[1759404978765,0.1,225.55,225.5,4.4345898]
[1759404978954,0.78,225.55,225.5,4.4345898]
[1759404979261,0.1,225.55,225.51,20.8]
[1759404979558,0.1,225.55,225.51,21.07]
[1759404980149,0.78,225.55,225.51,20.8]
[1759404980751,0.78,225.55,225.51,25.23424143]
[1759404982564,0.1,225.55,225.52,20.8]
[1759404982742,5.15385156,225.54,225.47,4.43517984]
[1759404982942,0.72,225.53,225.47,4.43517984]
[1759404983473,0.72,225.52,225.47,4.43517984]
[1759404983794,0.72,225.51,225.47,4.43517984]
[1759404984137,0.1,225.55,225.46,51.7]
[1759404984138,4.43419691,225.52,225.46,51.7]
[1759404984341,0.72,225.51,225.46,20.8]
[1759404984567,0.72,225.51,225.43,11.08957289]
[1759404984568,0.72,225.51,225.44,30.9]
[1759404984743,4.43419691,225.52,225.44,30.9]
[1759404984744,0.72,225.5,225.44,30.9]
[1759404984949,4.43419691,225.52,225.44,31.17]
[1759404984950,5.15419691,225.52,225.44,31.17]
[1759404985265,0.72,225.51,225.44,30.9]
[1759404986143,0.72,225.51,225.45,4.43557329]
[1759404986868,5.15439921,225.51,225.45,4.43557329]
[1759404989278,4.43399991,225.53,225.45,4.43557329]
[1759404989578,0.72,225.5,225.45,4.43557329]
[1759404990262,0.72,225.5,225.45,4.70557329]
[1759404990579,0.72,225.52,225.46,11.14647521]
[1759404991303,4.43380331,225.54,225.46,20.8]
[1759404991304,0.72,225.51,225.46,20.8]
[1759404991782,4.43380331,225.54,225.46,21.07]
[1759404991962,0.72,225.53,225.46,21.07]
[1759404992366,5.15406839,225.53,225.47,4.43517984]
[1759404992571,0.82,225.55,225.48,11.14647521]
[1759404992789,0.82,225.55,225.49,0.27]
[1759404994267,5.25372823,225.55,225.47,4.43517984]
[1759404994463,0.72,225.54,225.47,35.33517984]
[1759404994866,0.72,225.53,225.47,35.33517984]
[1759404995069,4.53372823,225.55,225.47,35.33517984]